[Event "Swedish Chess Championship 2021: Mastarklassen-Elit"]
[Site "Scandic Helsingborg Nord, Florettgatan 41, Helsingborg, Sweden"]
[Date "2021.07.04"]
[Round "2.1"]
[White "Furhoff, Johan"]
[Black "Bellon Lopez, Juan Manuel"]
[Result "1-0"]
[TimeControl "90 minutes for 40 moves + 30 minutes for the rest of the game + 30 seconds per move from move one."]
[WhiteTitle "IM"]
[BlackTitle "GM"]
[WhiteFideId "1701797"]
[BlackFideId "2200031"]
[WhiteElo "2324"]
[BlackElo "2327"]

1. e4 {[%clk 01:30:57]} {[%emt 00:00:01]} c5 {[%clk 01:30:51]} {[%emt
00:00:10]} 2. Nf3 {[%clk 01:31:22]} {[%emt 00:00:05]} e6 {[%clk 01:31:01]}
{[%emt 00:00:21]} 3. d4 {[%clk 01:31:46]} {[%emt 00:00:07]} cxd4 {[%clk
01:31:20]} {[%emt 00:00:10]} 4. Nxd4 {[%clk 01:32:09]} {[%emt 00:00:06]} Nc6
{[%clk 01:31:28]} {[%emt 00:00:23]} 5. Nc3 {[%clk 01:32:23]} {[%emt 00:00:16]}
Qc7 {[%clk 01:31:26]} {[%emt 00:00:32]} 6. Ndb5 {[%clk 01:32:36]} {[%emt
00:00:17]} Qb8 {[%clk 01:31:45]} {[%emt 00:00:11]} 7. Be3 {[%clk 01:32:56]}
{[%emt 00:00:09]} b6 {[%clk 01:32:01]} {[%emt 00:00:15]} 8. f4 {[%clk
01:24:51]} {[%emt 00:08:36]} a6 {[%clk 01:30:19]} {[%emt 00:02:12]} 9. Nd4
{[%clk 01:24:45]} {[%emt 00:00:36]} Qc7 {[%clk 01:13:28]} {[%emt 00:17:21]} 10.
Nb3 {[%clk 01:16:32]} {[%emt 00:08:43]} b5 {[%clk 01:00:38]} {[%emt 00:13:20]}
11. Be2 {[%clk 01:10:08]} {[%emt 00:06:54]} Bb7 {[%clk 00:52:54]} {[%emt
00:08:13]} 12. O-O {[%clk 01:04:15]} {[%emt 00:06:23]} Rc8 {[%clk 00:48:39]}
{[%emt 00:04:45]} 13. Bf3 {[%clk 00:51:28]} {[%emt 00:13:17]} Na5 {[%clk
00:41:05]} {[%emt 00:08:04]} 14. Nxa5 {[%clk 00:42:14]} {[%emt 00:09:45]} Qxa5
{[%clk 00:41:21]} {[%emt 00:00:15]} 15. e5 {[%clk 00:41:57]} {[%emt 00:00:47]}
Qc7 {[%clk 00:40:04]} {[%emt 00:01:46]} 16. Ne4 {[%clk 00:35:13]} {[%emt
00:07:14]} Bxe4 {[%clk 00:38:43]} {[%emt 00:01:50]} 17. Bxe4 {[%clk 00:34:47]}
{[%emt 00:00:57]} f5 {[%clk 00:35:03]} {[%emt 00:04:11]} 18. Bf3 {[%clk
00:27:46]} {[%emt 00:07:30]} Bc5 {[%clk 00:34:43]} {[%emt 00:00:50]} 19. Bxc5
{[%clk 00:23:00]} {[%emt 00:05:17]} Qxc5+ {[%clk 00:34:58]} {[%emt 00:00:14]}
20. Rf2 {[%clk 00:23:05]} {[%emt 00:00:25]} Ne7 {[%clk 00:32:50]} {[%emt
00:02:37]} 21. a4 {[%clk 00:21:56]} {[%emt 00:01:40]} b4 {[%clk 00:25:47]}
{[%emt 00:07:33]} 22. Bb7 {[%clk 00:18:43]} {[%emt 00:03:43]} Rc7 {[%clk
00:26:04]} {[%emt 00:00:12]} 23. Bxa6 {[%clk 00:18:36]} {[%emt 00:00:37]} O-O
{[%clk 00:23:46]} {[%emt 00:02:48]} 24. Qd6 {[%clk 00:14:48]} {[%emt 00:04:18]}
Nd5 {[%clk 00:20:51]} {[%emt 00:03:25]} 25. Qxc5 {[%clk 00:14:17]} {[%emt
00:01:01]} Rxc5 {[%clk 00:21:15]} {[%emt 00:00:06]} 26. Bb5 {[%clk 00:14:26]}
{[%emt 00:00:21]} Rd8 {[%clk 00:16:43]} {[%emt 00:05:02]} 27. Rd1 {[%clk
00:13:44]} {[%emt 00:01:12]} Kf7 {[%clk 00:14:30]} {[%emt 00:02:43]} 28. Rd4
{[%clk 00:13:17]} {[%emt 00:00:57]} Ke7 {[%clk 00:12:19]} {[%emt 00:02:41]} 29.
Bc4 {[%clk 00:11:36]} {[%emt 00:02:11]} d6 {[%clk 00:07:37]} {[%emt 00:05:12]}
30. exd6+ {[%clk 00:11:45]} {[%emt 00:00:21]} Rxd6 {[%clk 00:07:53]} {[%emt
00:00:14]} 31. Rfd2 {[%clk 00:11:45]} {[%emt 00:00:30]} Rdc6 {[%clk 00:07:24]}
{[%emt 00:00:59]} 32. Bb3 {[%clk 00:10:58]} {[%emt 00:01:16]} h6 {[%clk
00:05:01]} {[%emt 00:02:53]} 33. h4 {[%clk 00:08:43]} {[%emt 00:02:44]} Kf6
{[%clk 00:04:34]} {[%emt 00:00:57]} 34. Kf2 {[%clk 00:08:26]} {[%emt 00:00:47]}
g5 {[%clk 00:04:53]} {[%emt 00:00:12]} 35. hxg5+ {[%clk 00:07:20]} {[%emt
00:01:36]} hxg5 {[%clk 00:05:18]} {[%emt 00:00:05]} 36. fxg5+ {[%clk 00:07:37]}
{[%emt 00:00:13]} Kxg5 {[%clk 00:05:32]} {[%emt 00:00:15]} 37. Bxd5 {[%clk
00:06:29]} {[%emt 00:01:38]} Rxd5 {[%clk 00:04:27]} {[%emt 00:01:36]} 38. Rxd5
{[%clk 00:04:45]} {[%emt 00:02:14]} exd5 {[%clk 00:04:52]} {[%emt 00:00:05]} 39.
Ke3 {[%clk 00:04:24]} {[%emt 00:00:51]} Rc4 {[%clk 00:04:49]} {[%emt 00:00:32]}
40. b3 {[%clk 00:03:44]} {[%emt 00:01:10]} Re4+ {[%clk 00:02:46]} {[%emt
00:02:33]} 41. Kd3 {[%clk 00:01:36]} {[%emt 00:02:38]} Kf6 {[%clk 00:24:31]}
{[%emt 00:08:45]} 42. c3 {[%clk 00:28:42]} {[%emt 00:03:23]} Ke5 {[%clk
00:22:36]} {[%emt 00:02:25]} 43. cxb4 {[%clk 00:27:44]} {[%emt 00:01:28]} Rxb4
{[%clk 00:23:00]} {[%emt 00:00:06]} 44. Kc3 {[%clk 00:27:49]} {[%emt 00:00:24]}
Rg4 {[%clk 00:23:23]} {[%emt 00:00:07]} 45. Rf2 {[%clk 00:21:39]} {[%emt
00:06:41]} Rg8 {[%clk 00:18:44]} {[%emt 00:05:09]} 46. a5 {[%clk 00:19:25]}
{[%emt 00:02:44]} d4+ {[%clk 00:18:25]} {[%emt 00:00:49]} 47. Kc4 {[%clk
00:11:57]} {[%emt 00:07:58]} Rc8+ {[%clk 00:18:11]} {[%emt 00:00:44]} 48. Kb5
{[%clk 00:12:16]} {[%emt 00:00:11]} d3 {[%clk 00:17:24]} {[%emt 00:01:18]} 49.
a6 {[%clk 00:10:54]} {[%emt 00:01:52]} Rc2 {[%clk 00:17:03]} {[%emt 00:00:51]}
50. a7 {[%clk 00:07:45]} {[%emt 00:03:39]} Rxf2 {[%clk 00:17:27]} {[%emt
00:00:06]} 51. a8=Q {[%clk 00:08:08]} {[%emt 00:00:07]} d2 {[%clk 00:17:43]}
{[%emt 00:00:14]} 52. Qa1 {[%clk 00:07:24]} {[%emt 00:01:13]} Ke4 {[%clk
00:11:51]} {[%emt 00:06:22]} 53. Kc4 {[%clk 00:07:26]} {[%emt 00:00:29]} Rxg2
{[%clk 00:11:47]} {[%emt 00:00:34]} 54. Qd4 {[%clk 00:06:32]} {[%emt 00:01:22]}
Kf3 {[%clk 00:12:08]} {[%emt 00:00:09]} 55. Kc3 {[%clk 00:06:06]} {[%emt
00:00:56]} f4 {[%clk 00:11:15]} {[%emt 00:01:24]} 56. b4 {[%clk 00:04:32]}
{[%emt 00:02:04]} Kg3 {[%clk 00:10:45]} {[%emt 00:01:00]} 57. b5 {[%clk
00:04:17]} {[%emt 00:00:45]} f3 {[%clk 00:07:06]} {[%emt 00:04:09]} 58. b6
{[%clk 00:04:30]} {[%emt 00:00:17]} Re2 {[%clk 00:07:29]} {[%emt 00:00:06]} 59.
b7 {[%clk 00:03:28]} {[%emt 00:01:33]} 1-0

[Event "Swedish Chess Championship 2021: Mastarklassen-Elit"]
[Site "Scandic Helsingborg Nord, Florettgatan 41, Helsingborg, Sweden"]
[Date "2021.07.04"]
[Round "2.2"]
[White "Zadruzny, Nicolaj"]
[Black "Nikolic, Vladan"]
[Result "1/2-1/2"]
[TimeControl "90 minutes for 40 moves + 30 minutes for the rest of the game + 30 seconds per move from move one."]
[WhiteTitle "FM"]
[WhiteFideId "1709550"]
[BlackFideId "1710702"]
[WhiteElo "2333"]
[BlackElo "2222"]

1. c4 {[%clk 01:30:25]} {[%emt 00:00:33]} Nf6 {[%clk 01:30:35]} {[%emt
00:00:26]} 2. Nc3 {[%clk 01:30:35]} {[%emt 00:00:20]} g6 {[%clk 01:30:44]}
{[%emt 00:00:22]} 3. Nf3 {[%clk 01:30:21]} {[%emt 00:00:41]} Bg7 {[%clk
01:30:56]} {[%emt 00:00:21]} 4. g3 {[%clk 01:30:24]} {[%emt 00:00:27]} c5
{[%clk 01:29:58]} {[%emt 00:01:28]} 5. Bg2 {[%clk 01:30:01]} {[%emt 00:00:53]}
Nc6 {[%clk 01:29:48]} {[%emt 00:00:41]} 6. d3 {[%clk 01:30:17]} {[%emt
00:00:14]} O-O {[%clk 01:29:41]} {[%emt 00:00:37]} 7. O-O {[%clk 01:30:31]}
{[%emt 00:00:15]} d6 {[%clk 01:29:21]} {[%emt 00:00:50]} 8. a3 {[%clk
01:30:39]} {[%emt 00:00:22]} a6 {[%clk 01:28:53]} {[%emt 00:00:59]} 9. Rb1
{[%clk 01:30:56]} {[%emt 00:00:12]} Rb8 {[%clk 01:28:51]} {[%emt 00:00:32]} 10.
b4 {[%clk 01:31:01]} {[%emt 00:00:25]} cxb4 {[%clk 01:28:57]} {[%emt 00:00:24]}
11. axb4 {[%clk 01:31:25]} {[%emt 00:00:06]} b5 {[%clk 01:29:21]} {[%emt
00:00:06]} 12. cxb5 {[%clk 01:31:45]} {[%emt 00:00:10]} axb5 {[%clk 01:29:44]}
{[%emt 00:00:07]} 13. Bd2 {[%clk 01:31:43]} {[%emt 00:00:32]} Bd7 {[%clk
01:29:41]} {[%emt 00:00:34]} 14. Qc1 {[%clk 01:31:40]} {[%emt 00:00:33]} Qc8
{[%clk 01:29:19]} {[%emt 00:00:52]} 15. Bh6 {[%clk 01:31:28]} {[%emt 00:00:41]}
Bh3 {[%clk 01:29:08]} {[%emt 00:00:42]} 16. Bxg7 {[%clk 01:31:46]} {[%emt
00:00:12]} Kxg7 {[%clk 01:29:22]} {[%emt 00:00:15]} 17. Qb2 {[%clk 01:31:55]}
{[%emt 00:00:21]} Bxg2 {[%clk 01:29:36]} {[%emt 00:00:17]} 18. Kxg2 {[%clk
01:32:20]} {[%emt 00:00:05]} Kg8 {[%clk 01:29:54]} {[%emt 00:00:12]} 19. Rfc1
{[%clk 01:32:38]} {[%emt 00:00:12]} Qb7 {[%clk 01:29:40]} {[%emt 00:00:44]} 20.
Kg1 {[%clk 01:32:58]} {[%emt 00:00:09]} Rfc8 {[%clk 01:29:41]} {[%emt
00:00:29]} 1/2-1/2

[Event "Swedish Chess Championship 2021: Mastarklassen-Elit"]
[Site "Scandic Helsingborg Nord, Florettgatan 41, Helsingborg, Sweden"]
[Date "2021.07.04"]
[Round "2.3"]
[White "Ernst, Thomas"]
[Black "Jogstad, Martin"]
[Result "1-0"]
[TimeControl "90 minutes for 40 moves + 30 minutes for the rest of the game + 30 seconds per move from move one."]
[WhiteTitle "GM"]
[BlackTitle "FM"]
[WhiteFideId "1700065"]
[BlackFideId "1715364"]
[WhiteElo "2310"]
[BlackElo "2301"]

1. e4 {[%clk 01:30:55]} {[%emt 00:00:04]} e6 {[%clk 01:30:45]} {[%emt
00:00:15]} 2. d4 {[%clk 01:31:16]} {[%emt 00:00:10]} d5 {[%clk 01:31:07]}
{[%emt 00:00:07]} 3. Nd2 {[%clk 01:31:36]} {[%emt 00:00:11]} c5 {[%clk
01:31:24]} {[%emt 00:00:12]} 4. exd5 {[%clk 01:31:49]} {[%emt 00:00:17]} Qxd5
{[%clk 01:31:46]} {[%emt 00:00:08]} 5. Ngf3 {[%clk 01:31:59]} {[%emt 00:00:20]}
cxd4 {[%clk 01:32:08]} {[%emt 00:00:08]} 6. Bc4 {[%clk 01:32:20]} {[%emt
00:00:09]} Qd6 {[%clk 01:32:31]} {[%emt 00:00:06]} 7. O-O {[%clk 01:32:18]}
{[%emt 00:00:33]} Nf6 {[%clk 01:32:23]} {[%emt 00:00:38]} 8. Nb3 {[%clk
01:32:27]} {[%emt 00:00:22]} Nc6 {[%clk 01:32:33]} {[%emt 00:00:20]} 9. Nbxd4
{[%clk 01:32:40]} {[%emt 00:00:16]} Nxd4 {[%clk 01:32:37]} {[%emt 00:00:26]} 10.
Nxd4 {[%clk 01:33:01]} {[%emt 00:00:09]} Be7 {[%clk 01:32:51]} {[%emt
00:00:15]} 11. b3 {[%clk 01:31:34]} {[%emt 00:01:57]} O-O {[%clk 01:32:22]}
{[%emt 00:00:59]} 12. Bb2 {[%clk 01:31:55]} {[%emt 00:00:10]} Qf4 {[%clk
01:32:33]} {[%emt 00:00:19]} 13. Qe2 {[%clk 01:30:14]} {[%emt 00:02:09]} a6
{[%clk 00:47:52]} {[%emt 00:45:11]} 14. a4 {[%clk 01:26:04]} {[%emt 00:04:41]}
e5 {[%clk 00:44:09]} {[%emt 00:04:13]} 15. Nf3 {[%clk 01:16:18]} {[%emt
00:10:16]} e4 {[%clk 00:43:36]} {[%emt 00:01:04]} 16. Ne5 {[%clk 01:16:37]}
{[%emt 00:00:11]} Bd6 {[%clk 00:26:53]} {[%emt 00:17:13]} 17. g3 {[%clk
01:16:50]} {[%emt 00:00:17]} Qh6 {[%clk 00:26:37]} {[%emt 00:00:46]} 18. f4
{[%clk 01:14:18]} {[%emt 00:03:02]} Bh3 {[%clk 00:26:12]} {[%emt 00:00:55]} 19.
Rfe1 {[%clk 01:13:40]} {[%emt 00:01:06]} Rad8 {[%clk 00:25:51]} {[%emt
00:00:52]} 20. Bc1 {[%clk 00:55:40]} {[%emt 00:18:30]} Bb4 {[%clk 00:16:47]}
{[%emt 00:09:35]} 21. Rd1 {[%clk 00:54:04]} {[%emt 00:02:05]} Rxd1+ {[%clk
00:16:30]} {[%emt 00:00:48]} 22. Qxd1 {[%clk 00:54:28]} {[%emt 00:00:05]} Bc5+
{[%clk 00:12:38]} {[%emt 00:04:22]} 23. Kh1 {[%clk 00:54:27]} {[%emt 00:00:31]}
g6 {[%clk 00:03:08]} {[%emt 00:10:01]} 24. Qe2 {[%clk 00:53:05]} {[%emt
00:01:50]} Qh5 {[%clk 00:00:50]} {[%emt 00:02:50]} 25. Qxh5 {[%clk 00:50:59]}
{[%emt 00:02:36]} gxh5 {[%clk 00:00:52]} {[%emt 00:00:29]} 26. Ba3 {[%clk
00:50:18]} {[%emt 00:01:09]} Bxa3 {[%clk 00:01:06]} {[%emt 00:00:17]} 27. Rxa3
{[%clk 00:50:43]} {[%emt 00:00:05]} Rd8 {[%clk 00:01:01]} {[%emt 00:00:35]} 28.
Bxf7+ {[%clk 00:48:59]} {[%emt 00:02:15]} Kg7 {[%clk 00:01:01]} {[%emt
00:00:30]} 29. Ra1 {[%clk 00:49:22]} {[%emt 00:00:06]} Rd2 {[%clk 00:01:02]}
{[%emt 00:00:29]} 30. Rc1 {[%clk 00:49:35]} {[%emt 00:00:18]} e3 {[%clk
00:00:40]} {[%emt 00:00:53]} 31. Bc4 {[%clk 00:49:05]} {[%emt 00:00:58]} e2
{[%clk 00:00:36]} {[%emt 00:00:35]} 32. Re1 {[%clk 00:48:17]} {[%emt 00:01:18]}
Rd1 {[%clk 00:00:50]} {[%emt 00:00:16]} 33. Nd3 {[%clk 00:48:22]} {[%emt
00:00:25]} Ne4 {[%clk 00:00:42]} {[%emt 00:00:39]} 34. Kg1 {[%clk 00:48:29]}
{[%emt 00:00:22]} Bg4 {[%clk 00:00:40]} {[%emt 00:00:33]} 35. Kg2 {[%clk
00:46:02]} {[%emt 00:02:56]} Nc3 {[%clk 00:00:43]} {[%emt 00:00:27]} 36. a5
{[%clk 00:43:08]} {[%emt 00:03:24]} Bf5 {[%clk 00:00:42]} {[%emt 00:00:32]} 37.
Kf2 {[%clk 00:43:08]} {[%emt 00:00:29]} Rd2 {[%clk 00:00:44]} {[%emt 00:00:29]}
38. Nc1 {[%clk 00:43:02]} {[%emt 00:00:35]} Nd1+ {[%clk 00:00:49]} {[%emt
00:00:26]} 39. Kg1 {[%clk 00:41:51]} {[%emt 00:01:39]} Rxc2 {[%clk 00:00:55]}
{[%emt 00:00:26]} 40. Nxe2 {[%clk 00:39:17]} {[%emt 00:03:03]} Rd2 {[%clk
00:01:13]} {[%emt 00:00:13]} 41. Nc1 {[%clk 00:36:25]} {[%emt 00:03:20]} Nf2
{[%clk 00:27:16]} {[%emt 00:04:28]} 42. Re2 {[%clk 00:58:59]} {[%emt 00:07:55]}
Nh3+ {[%clk 00:26:30]} {[%emt 00:01:17]} 43. Kg2 {[%clk 00:59:17]} {[%emt
00:00:12]} Rd1 {[%clk 00:26:12]} {[%emt 00:00:49]} 44. Re7+ {[%clk 00:58:49]}
{[%emt 00:00:56]} Kf6 {[%clk 00:25:01]} {[%emt 00:01:41]} 45. Rf7+ {[%clk
00:59:03]} {[%emt 00:00:18]} Kg6 {[%clk 00:25:16]} {[%emt 00:00:15]} 46. Ne2
{[%clk 00:58:51]} {[%emt 00:00:41]} Bd3 {[%clk 00:22:57]} {[%emt 00:02:50]} 47.
Re7 {[%clk 00:54:20]} {[%emt 00:04:59]} Bf5 {[%clk 00:20:38]} {[%emt 00:02:51]}
48. Rf7 {[%clk 00:41:46]} {[%emt 00:13:04]} Bd3 {[%clk 00:19:36]} {[%emt
00:01:33]} 49. Rf8 {[%clk 00:41:41]} {[%emt 00:00:34]} Bf5 {[%clk 00:17:21]}
{[%emt 00:02:46]} 50. Rxf5 {[%clk 00:41:03]} {[%emt 00:01:08]} Kxf5 {[%clk
00:17:31]} {[%emt 00:00:20]} 51. Kxh3 {[%clk 00:41:24]} {[%emt 00:00:08]} Kg6
{[%clk 00:13:46]} {[%emt 00:04:16]} 52. Nc3 {[%clk 00:40:35]} {[%emt 00:01:18]}
Rd2 {[%clk 00:11:59]} {[%emt 00:02:18]} 53. Na4 {[%clk 00:38:48]} {[%emt
00:02:16]} Ra2 {[%clk 00:11:12]} {[%emt 00:01:18]} 54. Bd5 {[%clk 00:38:31]}
{[%emt 00:00:46]} Ra3 {[%clk 00:11:37]} {[%emt 00:00:07]} 55. Kh4 {[%clk
00:37:54]} {[%emt 00:01:05]} Ra2 {[%clk 00:11:37]} {[%emt 00:00:32]} 56. h3
{[%clk 00:37:22]} {[%emt 00:01:02]} Ra3 {[%clk 00:12:02]} {[%emt 00:00:06]} 57.
Bxb7 {[%clk 00:34:03]} {[%emt 00:03:47]} Rxb3 {[%clk 00:12:28]} {[%emt
00:00:04]} 58. Bxa6 {[%clk 00:34:21]} {[%emt 00:00:12]} Kf6 {[%clk 00:12:38]}
{[%emt 00:00:20]} 59. Be2 {[%clk 00:33:00]} {[%emt 00:01:48]} Ra3 {[%clk
00:12:13]} {[%emt 00:00:59]} 60. Bd1 {[%clk 00:32:53]} {[%emt 00:00:35]} Rd3
{[%clk 00:11:47]} {[%emt 00:00:57]} 61. Bxh5 {[%clk 00:31:53]} {[%emt
00:01:29]} Rd5 {[%clk 00:11:55]} {[%emt 00:00:24]} 62. Nc3 {[%clk 00:31:11]}
{[%emt 00:01:11]} Rxa5 {[%clk 00:12:21]} {[%emt 00:00:05]} 63. g4 {[%clk
00:31:04]} {[%emt 00:00:35]} Kg7 {[%clk 00:12:33]} {[%emt 00:00:19]} 64. Ne2
{[%clk 00:30:52]} {[%emt 00:00:41]} Ra4 {[%clk 00:12:07]} {[%emt 00:00:57]} 65.
g5 {[%clk 00:30:50]} {[%emt 00:00:31]} Re4 {[%clk 00:12:27]} {[%emt 00:00:11]}
66. Bf3 {[%clk 00:30:59]} {[%emt 00:00:20]} Re3 {[%clk 00:12:54]} {[%emt
00:00:05]} 67. Kg3 {[%clk 00:31:16]} {[%emt 00:00:13]} Kg6 {[%clk 00:13:00]}
{[%emt 00:00:24]} 68. h4 {[%clk 00:31:08]} {[%emt 00:00:37]} Ra3 {[%clk
00:12:49]} {[%emt 00:00:42]} 69. Nd4 {[%clk 00:30:54]} {[%emt 00:00:43]} Rd3
{[%clk 00:13:07]} {[%emt 00:00:13]} 70. f5+ {[%clk 00:30:58]} {[%emt 00:00:27]}
Kf7 {[%clk 00:13:30]} {[%emt 00:00:06]} 71. Ne6 {[%clk 00:31:02]} {[%emt
00:00:24]} Ra3 {[%clk 00:13:38]} {[%emt 00:00:24]} 72. Kf4 {[%clk 00:31:07]}
{[%emt 00:00:24]} Ra4+ {[%clk 00:13:46]} {[%emt 00:00:23]} 73. Be4 {[%clk
00:31:25]} {[%emt 00:00:11]} Ra1 {[%clk 00:14:13]} {[%emt 00:00:03]} 74. h5
{[%clk 00:31:23]} {[%emt 00:00:32]} Kg8 {[%clk 00:13:50]} {[%emt 00:00:54]} 75.
f6 {[%clk 00:30:35]} {[%emt 00:01:17]} h6 {[%clk 00:13:45]} {[%emt 00:00:36]}
76. g6 {[%clk 00:26:08]} {[%emt 00:04:56]} Kh8 {[%clk 00:14:11]} {[%emt
00:00:05]} 77. Bd5 {[%clk 00:25:56]} {[%emt 00:00:40]} Rd1 {[%clk 00:07:24]}
{[%emt 00:07:19]} 78. Ke5 {[%clk 00:24:55]} {[%emt 00:01:29]} Rd2 {[%clk
00:07:16]} {[%emt 00:00:39]} 79. g7+ {[%clk 00:23:50]} {[%emt 00:01:35]} Kh7
{[%clk 00:07:43]} {[%emt 00:00:03]} 80. Nf8# {[%emt 00:00:18]} 1-0

[Event "Swedish Chess Championship 2021: Mastarklassen-Elit"]
[Site "Scandic Helsingborg Nord, Florettgatan 41, Helsingborg, Sweden"]
[Date "2021.07.04"]
[Round "2.4"]
[White "Lindberg, Bengt"]
[Black "Johansson, Thomas"]
[Result "1/2-1/2"]
[TimeControl "90 minutes for 40 moves + 30 minutes for the rest of the game + 30 seconds per move from move one."]
[WhiteTitle "IM"]
[WhiteFideId "1700359"]
[BlackFideId "1702998"]
[WhiteElo "2392"]
[BlackElo "2254"]

1. e4 {[%clk 01:30:57]} {[%emt 00:00:02]} d5 {[%clk 01:30:41]} {[%emt
00:00:20]} 2. exd5 {[%clk 01:31:06]} {[%emt 00:00:21]} Qxd5 {[%clk 01:31:04]}
{[%emt 00:00:07]} 3. Nc3 {[%clk 01:31:12]} {[%emt 00:00:24]} Qd8 {[%clk
01:31:28]} {[%emt 00:00:06]} 4. d4 {[%clk 01:31:04]} {[%emt 00:00:37]} Nf6
{[%clk 01:31:50]} {[%emt 00:00:09]} 5. Bc4 {[%clk 01:21:29]} {[%emt 00:10:04]}
g6 {[%clk 01:31:42]} {[%emt 00:00:38]} 6. Nf3 {[%clk 01:19:59]} {[%emt
00:01:59]} Bg7 {[%clk 01:31:51]} {[%emt 00:00:22]} 7. O-O {[%clk 01:19:13]}
{[%emt 00:01:16]} O-O {[%clk 01:32:04]} {[%emt 00:00:18]} 8. h3 {[%clk
01:18:10]} {[%emt 00:01:33]} a6 {[%clk 01:31:10]} {[%emt 00:01:25]} 9. a4
{[%clk 01:16:17]} {[%emt 00:02:22]} Nc6 {[%clk 01:29:26]} {[%emt 00:02:14]} 10.
Re1 {[%clk 01:12:39]} {[%emt 00:04:08]} e6 {[%clk 01:24:45]} {[%emt 00:05:12]}
11. Ne2 {[%clk 00:42:35]} {[%emt 00:30:32]} b6 {[%clk 01:14:00]} {[%emt
00:11:17]} 12. Nf4 {[%clk 00:39:53]} {[%emt 00:03:11]} Qd6 {[%clk 01:06:57]}
{[%emt 00:07:34]} 13. c3 {[%clk 00:39:20]} {[%emt 00:01:02]} Na5 {[%clk
01:02:02]} {[%emt 00:05:26]} 14. Ba2 {[%clk 00:39:01]} {[%emt 00:00:49]} c5
{[%clk 01:01:34]} {[%emt 00:00:59]} 15. dxc5 {[%clk 00:37:16]} {[%emt
00:02:15]} Qxd1 {[%clk 01:01:40]} {[%emt 00:00:24]} 16. Rxd1 {[%clk 00:37:36]}
{[%emt 00:00:09]} bxc5 {[%clk 01:02:01]} {[%emt 00:00:10]} 17. Be3 {[%clk
00:29:04]} {[%emt 00:09:01]} c4 {[%clk 00:47:57]} {[%emt 00:14:36]} 18. Bb6
{[%clk 00:20:34]} {[%emt 00:08:59]} Nb3 {[%clk 00:44:24]} {[%emt 00:04:04]} 19.
Bxb3 {[%clk 00:20:57]} {[%emt 00:00:07]} cxb3 {[%clk 00:44:46]} {[%emt
00:00:08]} 20. Bd4 {[%clk 00:20:32]} {[%emt 00:00:54]} Bb7 {[%clk 00:40:11]}
{[%emt 00:05:06]} 21. Nd2 {[%clk 00:20:34]} {[%emt 00:00:27]} Rfe8 {[%clk
00:32:08]} {[%emt 00:08:34]} 22. Nd3 {[%clk 00:20:07]} {[%emt 00:00:57]} Bd5
{[%clk 00:29:46]} {[%emt 00:02:53]} 23. c4 {[%clk 00:18:05]} {[%emt 00:02:31]}
Be4 {[%clk 00:27:29]} {[%emt 00:02:47]} 24. Nxb3 {[%clk 00:12:04]} {[%emt
00:06:31]} e5 {[%clk 00:23:33]} {[%emt 00:04:26]} 25. Bc3 {[%clk 00:09:32]}
{[%emt 00:03:01]} Rac8 {[%clk 00:22:16]} {[%emt 00:01:48]} 26. Nbc5 {[%clk
00:05:19]} {[%emt 00:04:43]} Bxd3 {[%clk 00:19:47]} {[%emt 00:03:00]} 27. Nxd3
{[%clk 00:05:42]} {[%emt 00:00:06]} Ne4 {[%clk 00:19:38]} {[%emt 00:00:39]} 28.
Be1 {[%clk 00:04:07]} {[%emt 00:02:04]} Rxc4 {[%clk 00:19:30]} {[%emt
00:00:39]} 29. b3 {[%clk 00:04:07]} {[%emt 00:00:29]} Rd4 {[%clk 00:18:07]}
{[%emt 00:01:53]} 30. Nb4 {[%clk 00:03:10]} {[%emt 00:01:27]} Red8 {[%clk
00:16:47]} {[%emt 00:01:51]} 31. Rxd4 {[%clk 00:02:23]} {[%emt 00:01:16]} exd4
{[%clk 00:17:08]} {[%emt 00:00:09]} 32. Nd3 {[%clk 00:02:48]} {[%emt 00:00:06]}
Rb8 {[%clk 00:12:36]} {[%emt 00:05:03]} 33. b4 {[%clk 00:01:22]} {[%emt
00:01:55]} Nc3 {[%clk 00:11:38]} {[%emt 00:01:28]} 34. Ra3 {[%clk 00:01:10]}
{[%emt 00:00:41]} Nd5 {[%clk 00:10:52]} {[%emt 00:01:17]} 35. Rb3 {[%clk
00:01:07]} {[%emt 00:00:33]} Bf8 {[%clk 00:10:38]} {[%emt 00:00:44]} 36. b5
{[%clk 00:01:09]} {[%emt 00:00:28]} axb5 {[%clk 00:10:13]} {[%emt 00:00:55]} 37.
Rxb5 {[%clk 00:01:02]} {[%emt 00:00:37]} Rd8 {[%clk 00:08:42]} {[%emt
00:02:01]} 38. Ba5 {[%clk 00:00:46]} {[%emt 00:00:46]} Rd6 {[%clk 00:08:07]}
{[%emt 00:01:05]} 39. Kf1 {[%clk 00:00:56]} {[%emt 00:00:19]} Kg7 {[%clk
00:06:40]} {[%emt 00:01:57]} 40. Bb4 {[%clk 00:00:58]} {[%emt 00:00:29]} Rd8
{[%clk 00:03:52]} {[%emt 00:03:19]} 41. Bxf8+ {[%clk 00:00:55]} {[%emt
00:00:33]} Kxf8 {[%clk 00:04:15]} {[%emt 00:00:06]} 42. Rb7 {[%clk 00:29:10]}
{[%emt 00:02:14]} Ra8 {[%clk 00:30:53]} {[%emt 00:03:52]} 43. Rd7 {[%clk
00:19:07]} {[%emt 00:10:32]} Nc3 {[%clk 00:29:21]} {[%emt 00:02:04]} 44. Rxd4
{[%clk 00:19:18]} {[%emt 00:00:18]} Rxa4 {[%clk 00:29:35]} {[%emt 00:00:16]}
1/2-1/2